[Event "Titled Tuesday Blitz February 07 Early 2023"]
[White "Madaminov, Mukhiddin"]
[Black "Korchmar, Vasiliy"]
[WhiteFideId "14210703"]
[BlackFideId "24131750"]
[WhiteElo "2422"]
[BlackElo "2438"]
[Result "1-0"]
[Round "02"]
[TimeControl "180+2"]
[Date "2023.02.07"]
[WhiteClock "0:00:45"]
[BlackClock "0:00:02"]

1. d4 {[%clk 0:03:00]}  d5 {[%clk 0:02:57]} 2. Nc3 {[%clk 0:03:01]}  Nf6 {[%clk 0:02:57]} 3. Bf4 {[%clk 0:03:02]}  a6 {[%clk 0:02:55]} 4. e3 {[%clk 0:03:02]}  b5 {[%clk 0:02:53]} 5. Bd3 {[%clk 0:03:02]}  e6 {[%clk 0:02:51]} 6. Nf3 {[%clk 0:03:01]}  Bb7 {[%clk 0:02:50]} 7. Ne2 {[%clk 0:03:00]}  Nbd7 {[%clk 0:02:50]} 8. Ng3 {[%clk 0:02:55]}  Bd6 {[%clk 0:02:47]} 9. c3 {[%clk 0:02:55]}  Qe7 {[%clk 0:02:43]} 10. O-O {[%clk 0:02:54]}  O-O {[%clk 0:02:40]} 11. Re1 {[%clk 0:02:42]}  Ne4 {[%clk 0:02:39]} 12. Bxd6 {[%clk 0:02:35]}  cxd6 {[%clk 0:02:37]} 13. Nd2 {[%clk 0:02:32]}  f5 {[%clk 0:02:32]} 14. a4 {[%clk 0:02:26]}  Bc6 {[%clk 0:02:20]} 15. axb5 {[%clk 0:02:19]}  Bxb5 {[%clk 0:02:11]} 16. Qe2 {[%clk 0:02:14]}  Bxd3 {[%clk 0:01:50]} 17. Qxd3 {[%clk 0:02:13]}  a5 {[%clk 0:01:51]} 18. Ra2 {[%clk 0:02:08]}  Rfb8 {[%clk 0:01:49]} 19. Rea1 {[%clk 0:02:07]}  Nb6 {[%clk 0:01:34]} 20. Ngf1 {[%clk 0:01:55]}  a4 {[%clk 0:01:28]} 21. f3 {[%clk 0:01:51]}  Nf6 {[%clk 0:01:22]} 22. e4 {[%clk 0:01:35]}  fxe4 {[%clk 0:01:20]} 23. fxe4 {[%clk 0:01:36]}  dxe4 {[%clk 0:01:19]} 24. Nxe4 {[%clk 0:01:37]}  Nxe4 {[%clk 0:01:14]} 25. Qxe4 {[%clk 0:01:38]}  Nc4 {[%clk 0:01:04]} 26. d5 {[%clk 0:01:29]}  Nxb2 {[%clk 0:00:32]} 27. dxe6 {[%clk 0:01:28]}  Ra5 {[%clk 0:00:17]} 28. Qb1 {[%clk 0:01:14]}  Qa7+ {[%clk 0:00:16]} 29. Kh1 {[%clk 0:01:12]}  Nc4 {[%clk 0:00:14]} 30. Qd3 {[%clk 0:01:05]}  Qa6 {[%clk 0:00:02]} 31. h3 {[%clk 0:01:02]}  Re8 {[%clk 0:00:02]} 32. Re1 {[%clk 0:00:52]}  d5 {[%clk 0:00:02]} 33. Qf5 {[%clk 0:00:46]}  Qd6 {[%clk 0:00:02]} 34. Qf7+ {[%clk 0:00:45]} 1-0


[Site "https://www.chess.com"]

[Event "Titled Tuesday Blitz February 07 Early 2023"]
[White "Yaran, Siar"]
[Black "Pap, Gyula"]
[WhiteFideId "6323006"]
[BlackFideId "725323"]
[WhiteElo "2288"]
[BlackElo "2429"]
[Result "0-1"]
[Round "02"]
[TimeControl "180+2"]
[Date "2023.02.07"]
[WhiteClock "0:00:07"]
[BlackClock "0:00:20"]

1. d4 {[%clk 0:03:00]}  d6 {[%clk 0:02:59]} 2. c4 {[%clk 0:03:00]}  Nc6 {[%clk 0:03:00]} 3. Nc3 {[%clk 0:03:00]}  g6 {[%clk 0:02:59]} 4. e4 {[%clk 0:03:00]}  Bg7 {[%clk 0:02:59]} 5. Be3 {[%clk 0:03:00]}  Nf6 {[%clk 0:02:42]} 6. f3 {[%clk 0:02:57]}  a6 {[%clk 0:02:42]} 7. Qd2 {[%clk 0:02:55]}  Bd7 {[%clk 0:02:39]} 8. Bd3 {[%clk 0:02:55]}  O-O {[%clk 0:02:32]} 9. Nge2 {[%clk 0:02:54]}  Na5 {[%clk 0:02:25]} 10. Bh6 {[%clk 0:02:50]}  b5 {[%clk 0:02:20]} 11. h4 {[%clk 0:02:43]}  bxc4 {[%clk 0:02:10]} 12. Bc2 {[%clk 0:02:38]}  e5 {[%clk 0:01:31]} 13. Rd1 {[%clk 0:02:24]}  c6 {[%clk 0:01:23]} 14. dxe5 {[%clk 0:02:11]}  dxe5 {[%clk 0:01:23]} 15. h5 {[%clk 0:02:06]}  Be6 {[%clk 0:01:14]} 16. Qe3 {[%clk 0:01:49]}  Qe7 {[%clk 0:01:08]} 17. g4 {[%clk 0:01:35]}  Rab8 {[%clk 0:01:04]} 18. Na4 {[%clk 0:01:04]}  c5 {[%clk 0:01:04]} 19. Ng3 {[%clk 0:00:47]}  Nc6 {[%clk 0:01:01]} 20. Bxg7 {[%clk 0:00:47]}  Kxg7 {[%clk 0:01:00]} 21. hxg6 {[%clk 0:00:47]}  fxg6 {[%clk 0:01:00]} 22. Qh6+ {[%clk 0:00:48]}  Kg8 {[%clk 0:00:59]} 23. g5 {[%clk 0:00:35]}  Ne8 {[%clk 0:00:33]} 24. Nxc5 {[%clk 0:00:32]}  Nd4 {[%clk 0:00:30]} 25. Rxd4 {[%clk 0:00:31]}  exd4 {[%clk 0:00:28]} 26. Nxe6 {[%clk 0:00:31]}  Rxf3 {[%clk 0:00:29]} 27. e5 {[%clk 0:00:15]}  d3 {[%clk 0:00:24]} 28. Bd1 {[%clk 0:00:06]}  Rxg3 {[%clk 0:00:23]} 29. Rf1 {[%clk 0:00:07]}  Ng7 {[%clk 0:00:20]} 0-1


[Site "https://www.chess.com"]

[Event "Titled Tuesday Blitz February 07 Early 2023"]
[White "Cori T., Deysi"]
[Black "Bachmann, Axel"]
[WhiteFideId "3801934"]
[BlackFideId "3700488"]
[WhiteElo "2362"]
[BlackElo "2604"]
[Result "0-1"]
[Round "02"]
[TimeControl "180+2"]
[Date "2023.02.07"]
[WhiteClock "0:00:03"]
[BlackClock "0:00:11"]

1. d4 {[%clk 0:03:00]}  Nf6 {[%clk 0:02:58]} 2. Nf3 {[%clk 0:03:01]}  g6 {[%clk 0:02:57]} 3. g3 {[%clk 0:03:01]}  Bg7 {[%clk 0:02:57]} 4. Bg2 {[%clk 0:03:02]}  O-O {[%clk 0:02:57]} 5. O-O {[%clk 0:03:02]}  d6 {[%clk 0:02:58]} 6. b3 {[%clk 0:03:02]}  c5 {[%clk 0:02:43]} 7. Bb2 {[%clk 0:03:02]}  cxd4 {[%clk 0:02:43]} 8. Nxd4 {[%clk 0:03:03]}  d5 {[%clk 0:02:41]} 9. c4 {[%clk 0:03:02]}  dxc4 {[%clk 0:02:42]} 10. bxc4 {[%clk 0:03:03]}  Na6 {[%clk 0:02:33]} 11. Nb5 {[%clk 0:03:01]}  Nc5 {[%clk 0:02:14]} 12. Nd2 {[%clk 0:02:55]}  a6 {[%clk 0:02:12]} 13. Nc3 {[%clk 0:02:55]}  Be6 {[%clk 0:02:02]} 14. Rc1 {[%clk 0:02:52]}  Qc7 {[%clk 0:01:53]} 15. Qc2 {[%clk 0:02:41]}  Rfd8 {[%clk 0:01:43]} 16. Nd5 {[%clk 0:02:39]}  Nxd5 {[%clk 0:01:43]} 17. cxd5 {[%clk 0:02:38]}  Bxb2 {[%clk 0:01:43]} 18. dxe6 {[%clk 0:02:32]}  Bxc1 {[%clk 0:01:40]} 19. exf7+ {[%clk 0:02:32]}  Kxf7 {[%clk 0:01:35]} 20. Rxc1 {[%clk 0:02:33]}  Rac8 {[%clk 0:01:28]} 21. Bh3 {[%clk 0:02:31]}  e6 {[%clk 0:01:20]} 22. Ne4 {[%clk 0:02:26]}  b6 {[%clk 0:01:10]} 23. Ng5+ {[%clk 0:02:26]}  Ke7 {[%clk 0:01:07]} 24. Qb2 {[%clk 0:02:23]}  Rd5 {[%clk 0:00:47]} 25. Qg7+ {[%clk 0:01:59]}  Kd6 {[%clk 0:00:46]} 26. Ne4+ {[%clk 0:01:57]}  Kc6 {[%clk 0:00:42]} 27. Qb2 {[%clk 0:01:51]}  Kb7 {[%clk 0:00:39]} 28. Bxe6 {[%clk 0:01:51]}  Re5 {[%clk 0:00:35]} 29. Bxc8+ {[%clk 0:01:49]}  Kxc8 {[%clk 0:00:34]} 30. Nxc5 {[%clk 0:01:47]}  Rxc5 {[%clk 0:00:35]} 31. Rd1 {[%clk 0:01:33]}  a5 {[%clk 0:00:31]} 32. Qh8+ {[%clk 0:01:32]}  Kb7 {[%clk 0:00:31]} 33. Qe8 {[%clk 0:01:32]}  Qc6 {[%clk 0:00:30]} 34. Qe7+ {[%clk 0:01:26]}  Ka6 {[%clk 0:00:30]} 35. Qxh7 {[%clk 0:01:06]}  Rc2 {[%clk 0:00:30]} 36. Qe7 {[%clk 0:00:22]}  Rxa2 {[%clk 0:00:29]} 37. h4 {[%clk 0:00:20]}  Rc2 {[%clk 0:00:27]} 38. Kh2 {[%clk 0:00:19]}  Rc1 {[%clk 0:00:24]} 39. Rxc1 {[%clk 0:00:16]}  Qxc1 {[%clk 0:00:24]} 40. Qe4 {[%clk 0:00:15]}  Qc5 {[%clk 0:00:23]} 41. Kg2 {[%clk 0:00:15]}  Qd6 {[%clk 0:00:20]} 42. g4 {[%clk 0:00:12]}  Kb5 {[%clk 0:00:18]} 43. h5 {[%clk 0:00:12]}  gxh5 {[%clk 0:00:18]} 44. gxh5 {[%clk 0:00:13]}  a4 {[%clk 0:00:19]} 45. Qb1+ {[%clk 0:00:08]}  Ka5 {[%clk 0:00:18]} 46. Qe1+ {[%clk 0:00:07]}  Ka6 {[%clk 0:00:18]} 47. Qa1 {[%clk 0:00:06]}  a3 {[%clk 0:00:18]} 48. e4 {[%clk 0:00:05]}  Qb4 {[%clk 0:00:17]} 49. h6 {[%clk 0:00:04]}  Qxe4+ {[%clk 0:00:14]} 50. f3 {[%clk 0:00:04]}  Qg6+ {[%clk 0:00:14]} 51. Kf2 {[%clk 0:00:04]}  Qc2+ {[%clk 0:00:09]} 52. Kg3 {[%clk 0:00:04]}  Qb2 {[%clk 0:00:10]} 53. Qf1+ {[%clk 0:00:03]}  b5 {[%clk 0:00:11]} 0-1


[Site "https://www.chess.com"]

[Event "Titled Tuesday Blitz February 07 Early 2023"]
[White "Lymar, Vladislav"]
[Black "Makarian, Rudik"]
[WhiteFideId "14162180"]
[BlackFideId "44105681"]
[WhiteElo "2119"]
[BlackElo "2545"]
[Result "0-1"]
[Round "02"]
[TimeControl "180+2"]
[Date "2023.02.07"]
[WhiteClock "0:00:09"]
[BlackClock "0:00:14"]

1. e4 {[%clk 0:02:58]}  c5 {[%clk 0:02:58]} 2. Nf3 {[%clk 0:02:58]}  e6 {[%clk 0:02:51]} 3. g3 {[%clk 0:02:58]}  Nc6 {[%clk 0:02:51]} 4. Bg2 {[%clk 0:02:58]}  Nf6 {[%clk 0:02:52]} 5. Nc3 {[%clk 0:02:58]}  d6 {[%clk 0:02:50]} 6. O-O {[%clk 0:02:58]}  Be7 {[%clk 0:02:51]} 7. d3 {[%clk 0:02:57]}  O-O {[%clk 0:02:51]} 8. Nd2 {[%clk 0:02:54]}  Rb8 {[%clk 0:02:48]} 9. a4 {[%clk 0:02:53]}  a6 {[%clk 0:02:49]} 10. f4 {[%clk 0:02:52]}  Nd4 {[%clk 0:02:42]} 11. Ne2 {[%clk 0:02:49]}  Nxe2+ {[%clk 0:02:40]} 12. Qxe2 {[%clk 0:02:50]}  b5 {[%clk 0:02:40]} 13. axb5 {[%clk 0:02:49]}  axb5 {[%clk 0:02:40]} 14. g4 {[%clk 0:02:45]}  h6 {[%clk 0:02:19]} 15. g5 {[%clk 0:02:41]}  hxg5 {[%clk 0:02:08]} 16. fxg5 {[%clk 0:02:41]}  Nh7 {[%clk 0:02:09]} 17. h4 {[%clk 0:02:42]}  g6 {[%clk 0:01:59]} 18. Nf3 {[%clk 0:02:37]}  f6 {[%clk 0:01:47]} 19. gxf6 {[%clk 0:02:12]}  Bxf6 {[%clk 0:01:43]} 20. Qe1 {[%clk 0:02:06]}  Qe7 {[%clk 0:01:39]} 21. Qg3 {[%clk 0:02:03]}  Kh8 {[%clk 0:01:17]} 22. Bh6 {[%clk 0:01:26]}  Rg8 {[%clk 0:01:08]} 23. c3 {[%clk 0:01:22]}  b4 {[%clk 0:01:05]} 24. d4 {[%clk 0:01:22]}  bxc3 {[%clk 0:01:05]} 25. bxc3 {[%clk 0:01:23]}  cxd4 {[%clk 0:01:05]} 26. cxd4 {[%clk 0:01:23]}  e5 {[%clk 0:01:05]} 27. d5 {[%clk 0:01:17]}  Rb2 {[%clk 0:00:58]} 28. Rf2 {[%clk 0:01:12]}  Rxf2 {[%clk 0:00:57]} 29. Qxf2 {[%clk 0:01:11]}  Rd8 {[%clk 0:00:46]} 30. Qb6 {[%clk 0:01:04]}  Bg7 {[%clk 0:00:38]} 31. Ra7 {[%clk 0:01:02]}  Rd7 {[%clk 0:00:38]} 32. Ra8 {[%clk 0:01:00]}  Bxh6 {[%clk 0:00:37]} 33. Rxc8+ {[%clk 0:00:59]}  Kg7 {[%clk 0:00:38]} 34. Qb8 {[%clk 0:00:55]}  Rb7 {[%clk 0:00:28]} 35. Rg8+ {[%clk 0:00:55]}  Kf7 {[%clk 0:00:28]} 36. Qc8 {[%clk 0:00:49]}  Rb1+ {[%clk 0:00:24]} 37. Kh2 {[%clk 0:00:45]}  Nf8 {[%clk 0:00:24]} 38. Rh8 {[%clk 0:00:40]}  Bf4+ {[%clk 0:00:20]} 39. Kh3 {[%clk 0:00:40]}  Kg7 {[%clk 0:00:20]} 40. Rxf8 {[%clk 0:00:25]}  Qxf8 {[%clk 0:00:21]} 41. Qd7+ {[%clk 0:00:25]}  Kh6 {[%clk 0:00:22]} 42. Ng5 {[%clk 0:00:23]}  Rb3+ {[%clk 0:00:18]} 43. Bf3 {[%clk 0:00:18]}  Bxg5 {[%clk 0:00:15]} 44. hxg5+ {[%clk 0:00:18]}  Kxg5 {[%clk 0:00:16]} 45. Qg4+ {[%clk 0:00:08]}  Kh6 {[%clk 0:00:16]} 46. Kg3 {[%clk 0:00:08]}  Qf6 {[%clk 0:00:10]} 47. Qh3+ {[%clk 0:00:08]}  Kg7 {[%clk 0:00:11]} 48. Qd7+ {[%clk 0:00:08]}  Qf7 {[%clk 0:00:11]} 49. Qg4 {[%clk 0:00:08]}  Qf4+ {[%clk 0:00:11]} 50. Qxf4 {[%clk 0:00:08]}  exf4+ {[%clk 0:00:12]} 51. Kxf4 {[%clk 0:00:09]}  Kf6 {[%clk 0:00:13]} 52. Bg4 {[%clk 0:00:09]}  g5# {[%clk 0:00:14]} 0-1


[Site "https://www.chess.com"]

[Event "Titled Tuesday Blitz February 07 Early 2023"]
[White "Jones, Gawain C B"]
[Black "Djokovic, Nebojsa"]
[WhiteFideId "409561"]
[BlackFideId "938300"]
[WhiteElo "2618"]
[BlackElo "2119"]
[Result "1-0"]
[Round "02"]
[TimeControl "180+2"]
[Date "2023.02.07"]
[WhiteClock "0:01:12"]
[BlackClock "0:00:08"]

1. Nf3 {[%clk 0:03:00]}  Nf6 {[%clk 0:02:56]} 2. c4 {[%clk 0:02:59]}  e6 {[%clk 0:02:56]} 3. g3 {[%clk 0:02:57]}  d5 {[%clk 0:02:56]} 4. Bg2 {[%clk 0:02:57]}  Be7 {[%clk 0:02:57]} 5. O-O {[%clk 0:02:58]}  O-O {[%clk 0:02:57]} 6. b3 {[%clk 0:02:59]}  d4 {[%clk 0:02:57]} 7. e3 {[%clk 0:02:58]}  c5 {[%clk 0:02:57]} 8. d3 {[%clk 0:02:53]}  Nc6 {[%clk 0:02:54]} 9. exd4 {[%clk 0:02:53]}  cxd4 {[%clk 0:02:54]} 10. Ba3 {[%clk 0:02:54]}  Bxa3 {[%clk 0:02:44]} 11. Nxa3 {[%clk 0:02:55]}  Re8 {[%clk 0:02:41]} 12. Re1 {[%clk 0:02:43]}  e5 {[%clk 0:02:34]} 13. c5 {[%clk 0:02:42]}  Qa5 {[%clk 0:02:24]} 14. Nc4 {[%clk 0:02:41]}  Qxc5 {[%clk 0:02:20]} 15. Rc1 {[%clk 0:02:38]}  Qf8 {[%clk 0:01:11]} 16. Nfxe5 {[%clk 0:02:36]}  Nxe5 {[%clk 0:01:08]} 17. Nxe5 {[%clk 0:02:28]}  Be6 {[%clk 0:01:09]} 18. Bxb7 {[%clk 0:02:27]}  Rab8 {[%clk 0:01:09]} 19. Bg2 {[%clk 0:02:17]}  Qa3 {[%clk 0:01:09]} 20. Nc6 {[%clk 0:02:14]}  Rb6 {[%clk 0:01:02]} 21. Nxd4 {[%clk 0:02:13]}  Qxa2 {[%clk 0:01:00]} 22. Ra1 {[%clk 0:01:53]}  Qb2 {[%clk 0:01:00]} 23. Nxe6 {[%clk 0:01:53]}  fxe6 {[%clk 0:00:58]} 24. Rxa7 {[%clk 0:01:46]}  Qxb3 {[%clk 0:00:58]} 25. Qc1 {[%clk 0:01:32]}  Rd6 {[%clk 0:00:48]} 26. Qg5 {[%clk 0:01:20]}  Rd7 {[%clk 0:00:39]} 27. Rxd7 {[%clk 0:01:19]}  Nxd7 {[%clk 0:00:39]} 28. Bd5 {[%clk 0:01:17]}  Qxd3 {[%clk 0:00:33]} 29. Rxe6 {[%clk 0:01:14]}  Qd1+ {[%clk 0:00:10]} 30. Re1+ {[%clk 0:01:13]}  Qxd5 {[%clk 0:00:09]} 31. Rxe8+ {[%clk 0:01:11]}  Kf7 {[%clk 0:00:09]} 32. Re7+ {[%clk 0:01:11]}  Kf8 {[%clk 0:00:08]} 33. Qxg7# {[%clk 0:01:12]} 1-0


[Site "https://www.chess.com"]

[Event "Titled Tuesday Blitz February 07 Early 2023"]
[White "Gharibyan, Mamikon"]
[Black "Orzech, Dominik"]
[WhiteFideId "13308300"]
[BlackFideId "1115065"]
[WhiteElo "2500"]
[BlackElo "2308"]
[Result "0-1"]
[Round "02"]
[TimeControl "180+2"]
[Date "2023.02.07"]
[WhiteClock "0:00:04"]
[BlackClock "0:00:57"]

1. e4 {[%clk 0:03:00]}  c6 {[%clk 0:02:33]} 2. Nf3 {[%clk 0:02:59]}  d5 {[%clk 0:02:30]} 3. d3 {[%clk 0:02:59]}  Nf6 {[%clk 0:02:29]} 4. e5 {[%clk 0:02:58]}  Nfd7 {[%clk 0:02:29]} 5. e6 {[%clk 0:02:54]}  fxe6 {[%clk 0:02:30]} 6. Qe2 {[%clk 0:02:54]}  Nf6 {[%clk 0:02:26]} 7. g3 {[%clk 0:02:54]}  g6 {[%clk 0:02:26]} 8. Ng5 {[%clk 0:02:34]}  Bg7 {[%clk 0:02:18]} 9. Nxe6 {[%clk 0:02:33]}  Bxe6 {[%clk 0:02:18]} 10. Qxe6 {[%clk 0:02:34]}  Nbd7 {[%clk 0:02:11]} 11. Bg2 {[%clk 0:02:14]}  Nc5 {[%clk 0:02:10]} 12. Qe3 {[%clk 0:02:13]}  d4 {[%clk 0:02:10]} 13. Qe2 {[%clk 0:02:12]}  O-O {[%clk 0:02:09]} 14. O-O {[%clk 0:02:12]}  Nd5 {[%clk 0:02:07]} 15. Nd2 {[%clk 0:02:12]}  e5 {[%clk 0:02:05]} 16. Nc4 {[%clk 0:02:11]}  Qf6 {[%clk 0:02:04]} 17. Bd2 {[%clk 0:02:10]}  Rae8 {[%clk 0:02:04]} 18. a4 {[%clk 0:02:10]}  Kh8 {[%clk 0:01:57]} 19. b4 {[%clk 0:02:08]}  Ne6 {[%clk 0:01:57]} 20. Nd6 {[%clk 0:02:04]}  Nef4 {[%clk 0:01:50]} 21. Bxf4 {[%clk 0:01:50]}  Nxf4 {[%clk 0:01:43]} 22. gxf4 {[%clk 0:01:48]}  Qxd6 {[%clk 0:01:41]} 23. fxe5 {[%clk 0:01:44]}  Bxe5 {[%clk 0:01:40]} 24. Be4 {[%clk 0:01:44]}  Bxh2+ {[%clk 0:01:39]} 25. Kg2 {[%clk 0:01:45]}  Qf6 {[%clk 0:01:21]} 26. Qg4 {[%clk 0:01:41]}  Re5 {[%clk 0:01:15]} 27. Kxh2 {[%clk 0:00:23]}  Rh5+ {[%clk 0:01:14]} 28. Kg3 {[%clk 0:00:18]}  Rg5 {[%clk 0:01:14]} 29. f3 {[%clk 0:00:11]}  Qf4+ {[%clk 0:01:13]} 30. Kh3 {[%clk 0:00:07]}  Rxg4 {[%clk 0:01:10]} 31. fxg4 {[%clk 0:00:08]}  Qe3+ {[%clk 0:01:09]} 32. Kg2 {[%clk 0:00:07]}  Qe2+ {[%clk 0:01:09]} 33. Kg1 {[%clk 0:00:08]}  Qxg4+ {[%clk 0:01:07]} 34. Kh2 {[%clk 0:00:07]}  Qh4+ {[%clk 0:01:07]} 35. Kg2 {[%clk 0:00:08]}  Qg5+ {[%clk 0:01:07]} 36. Kh2 {[%clk 0:00:08]}  Qh6+ {[%clk 0:01:07]} 37. Kg2 {[%clk 0:00:08]}  Qd2+ {[%clk 0:01:07]} 38. Kg1 {[%clk 0:00:08]}  Rxf1+ {[%clk 0:01:07]} 39. Rxf1 {[%clk 0:00:09]}  Qxb4 {[%clk 0:01:07]} 40. Rf7 {[%clk 0:00:08]}  a5 {[%clk 0:01:06]} 41. Kg2 {[%clk 0:00:08]}  b5 {[%clk 0:01:02]} 42. Kg3 {[%clk 0:00:05]}  bxa4 {[%clk 0:01:01]} 43. Kf4 {[%clk 0:00:05]}  Qd6+ {[%clk 0:00:59]} 44. Kg5 {[%clk 0:00:06]}  Qe5+ {[%clk 0:00:57]} 45. Kg4 {[%clk 0:00:04]}  a3 {[%clk 0:00:57]} 0-1


[Site "https://www.chess.com"]

[Event "Titled Tuesday Blitz February 07 Early 2023"]
[White "Mohamed Anees M"]
[Black "Remizov, Yaroslav"]
[WhiteFideId "35065815"]
[BlackFideId "34134015"]
[WhiteElo "2315"]
[BlackElo "2421"]
[Result "0-1"]
[Round "02"]
[TimeControl "180+2"]
[Date "2023.02.07"]
[WhiteClock "0:01:13"]
[BlackClock "0:01:49"]

1. b3 {[%clk 0:02:55]}  e5 {[%clk 0:02:59]} 2. Bb2 {[%clk 0:02:48]}  Nc6 {[%clk 0:02:59]} 3. c4 {[%clk 0:02:46]}  Nf6 {[%clk 0:02:57]} 4. g3 {[%clk 0:02:42]}  d5 {[%clk 0:02:56]} 5. Bg2 {[%clk 0:02:42]}  Be6 {[%clk 0:02:52]} 6. d3 {[%clk 0:02:38]}  Bc5 {[%clk 0:02:44]} 7. Nf3 {[%clk 0:02:32]}  e4 {[%clk 0:02:42]} 8. Ng5 {[%clk 0:02:19]}  Bxf2+ {[%clk 0:02:37]} 9. Kf1 {[%clk 0:02:14]}  Ng4 {[%clk 0:02:33]} 10. Nxe6 {[%clk 0:02:13]}  Ne3+ {[%clk 0:02:33]} 11. Kxf2 {[%clk 0:02:11]}  Nxd1+ {[%clk 0:02:34]} 12. Rxd1 {[%clk 0:02:10]}  fxe6 {[%clk 0:02:35]} 13. dxe4 {[%clk 0:02:09]}  O-O+ {[%clk 0:02:33]} 14. Kg1 {[%clk 0:02:09]}  d4 {[%clk 0:02:33]} 15. Nd2 {[%clk 0:02:04]}  Qg5 {[%clk 0:02:24]} 16. Nf1 {[%clk 0:01:58]}  e5 {[%clk 0:02:21]} 17. Bf3 {[%clk 0:01:51]}  h5 {[%clk 0:02:18]} 18. h4 {[%clk 0:01:49]}  Qf6 {[%clk 0:02:15]} 19. Kg2 {[%clk 0:01:47]}  g5 {[%clk 0:02:12]} 20. hxg5 {[%clk 0:01:46]}  Qxg5 {[%clk 0:02:13]} 21. Bc1 {[%clk 0:01:44]}  Qg6 {[%clk 0:02:12]} 22. Nh2 {[%clk 0:01:41]}  Kf7 {[%clk 0:02:11]} 23. Rf1 {[%clk 0:01:37]}  Ke6 {[%clk 0:02:10]} 24. Ba3 {[%clk 0:01:28]}  Rg8 {[%clk 0:02:08]} 25. g4 {[%clk 0:01:28]}  Rg7 {[%clk 0:01:59]} 26. Kh1 {[%clk 0:01:20]}  hxg4 {[%clk 0:01:51]} 27. Bxg4+ {[%clk 0:01:18]}  Qxg4 {[%clk 0:01:51]} 28. Nxg4 {[%clk 0:01:18]}  Rxg4 {[%clk 0:01:51]} 29. Rf2 {[%clk 0:01:19]}  Rh8+ {[%clk 0:01:49]} 30. Rh2 {[%clk 0:01:19]}  Rxh2+ {[%clk 0:01:50]} 31. Kxh2 {[%clk 0:01:20]}  Rxe4 {[%clk 0:01:51]} 32. Re1 {[%clk 0:01:18]}  d3 {[%clk 0:01:49]} 33. e3 {[%clk 0:01:18]}  Nd4 {[%clk 0:01:49]} 34. Bc1 {[%clk 0:01:13]}  Nf3+ {[%clk 0:01:49]} 0-1


[Site "https://www.chess.com"]

[Event "Titled Tuesday Blitz February 07 Early 2023"]
[White "Bjerre, Jonas Buhl"]
[Black "Poliakova, Varvara"]
[WhiteFideId "1444948"]
[BlackFideId "13518313"]
[WhiteElo "2602"]
[BlackElo "2010"]
[Result "1-0"]
[Round "02"]
[TimeControl "180+2"]
[Date "2023.02.07"]
[WhiteClock "0:00:50"]
[BlackClock "0:00:34"]

1. d4 {[%clk 0:03:00]}  Nf6 {[%clk 0:02:52]} 2. Nf3 {[%clk 0:03:00]}  e6 {[%clk 0:02:51]} 3. c4 {[%clk 0:03:00]}  b6 {[%clk 0:02:51]} 4. g3 {[%clk 0:02:58]}  Bb7 {[%clk 0:02:50]} 5. Bg2 {[%clk 0:02:58]}  Be7 {[%clk 0:02:51]} 6. O-O {[%clk 0:02:58]}  O-O {[%clk 0:02:49]} 7. Nc3 {[%clk 0:02:58]}  Ne4 {[%clk 0:02:49]} 8. Bd2 {[%clk 0:02:59]}  d6 {[%clk 0:02:44]} 9. Qc2 {[%clk 0:02:52]}  Nxd2 {[%clk 0:02:42]} 10. Qxd2 {[%clk 0:02:50]}  Bf6 {[%clk 0:02:35]} 11. e4 {[%clk 0:02:49]}  e5 {[%clk 0:02:34]} 12. Rad1 {[%clk 0:02:36]}  Nd7 {[%clk 0:02:27]} 13. Nd5 {[%clk 0:02:31]}  exd4 {[%clk 0:02:15]} 14. Nxd4 {[%clk 0:02:29]}  Nc5 {[%clk 0:02:12]} 15. b4 {[%clk 0:02:21]}  Ne6 {[%clk 0:02:07]} 16. Nxf6+ {[%clk 0:01:44]}  Qxf6 {[%clk 0:01:51]} 17. e5 {[%clk 0:01:30]}  dxe5 {[%clk 0:01:41]} 18. Nxe6 {[%clk 0:01:29]}  Bxg2 {[%clk 0:01:38]} 19. Nxf8 {[%clk 0:01:30]}  Bxf1 {[%clk 0:01:28]} 20. Nd7 {[%clk 0:01:28]}  Qc6 {[%clk 0:01:20]} 21. Rxf1 {[%clk 0:01:23]}  Rd8 {[%clk 0:01:03]} 22. Nxe5 {[%clk 0:01:17]}  Rxd2 {[%clk 0:00:56]} 23. Nxc6 {[%clk 0:01:17]}  Rxa2 {[%clk 0:00:56]} 24. Rd1 {[%clk 0:01:14]}  h5 {[%clk 0:00:54]} 25. Rd7 {[%clk 0:01:13]}  a5 {[%clk 0:00:48]} 26. bxa5 {[%clk 0:01:13]}  bxa5 {[%clk 0:00:49]} 27. Rxc7 {[%clk 0:01:13]}  a4 {[%clk 0:00:50]} 28. c5 {[%clk 0:01:13]}  Rc2 {[%clk 0:00:48]} 29. Nb4 {[%clk 0:00:58]}  Rc4 {[%clk 0:00:48]} 30. Nd3 {[%clk 0:00:55]}  a3 {[%clk 0:00:46]} 31. Ra7 {[%clk 0:00:54]}  Rc3 {[%clk 0:00:45]} 32. Nf4 {[%clk 0:00:54]}  h4 {[%clk 0:00:37]} 33. gxh4 {[%clk 0:00:53]}  Rxc5 {[%clk 0:00:35]} 34. Rxa3 {[%clk 0:00:52]}  Rc4 {[%clk 0:00:36]} 35. Rf3 {[%clk 0:00:52]}  g6 {[%clk 0:00:36]} 36. Kg2 {[%clk 0:00:51]}  Kg7 {[%clk 0:00:37]} 37. Kg3 {[%clk 0:00:52]}  f5 {[%clk 0:00:37]} 38. Re3 {[%clk 0:00:50]}  Kh6 {[%clk 0:00:36]} 39. Re6 {[%clk 0:00:50]}  Rc3+ {[%clk 0:00:34]} 40. f3 {[%clk 0:00:50]} 1-0


[Site "https://www.chess.com"]